Cogmind - Beta 15 @@@ ROGUE MODE // 2025.07.19 @ 12:30:31 Player: Rockstar Result: Destroyed by H-77 Assassin with Coil Gun Performance ------------- Evolutions (6) 3000 Regions Visited (16) 3200 Robots Destroyed (44) 220 Value Destroyed (1531) 1531 Prototype IDs (35) 700 Alien Tech Used (1) 200 Bonus (1587) 1587 TOTAL SCORE: 10438 Bonus ------- Follower Combat Kills 721 Met Imprinter 300 Was Imprinted 300 Met Zhirov 300 Friendly Fire -34 Cogmind --------- Core Integrity 0/1150 Matter 229/300 Energy 528/600 System Corruption 1% Temperature Cool (4) Movement Hovering (116) Ox1 Location -3/Proximity Caves Parts ------- > --- POWER (2) -------- (None) > --- PROPULSION (8) --- Advanced Myomer Leg Gyrokinetic Inverter Improved Gyrokinetic Inverter > --- UTILITY (5) ------ Improved Coolant Injector Improved Coolant Injector Large Storage Unit Advanced Energy Well > --- WEAPON (4) ------- Falx > --- INVENTORY (15) --- Advanced Hacking Suite Peak State ------------ > --- POWER ------------ Neutrino Core Neutrino Core > --- PROPULSION ------- Antigrav System Antigrav System Gyrokinetic Inverter Gyrokinetic Inverter Linear Gravjet Linear Gravjet Improved Antigrav System Improved Gyrokinetic Inverter > --- UTILITY ---------- Improved Heat Sink Advanced Heat Sink Advanced Heat Sink Improved Coolant Injector Large Storage Unit > --- WEAPON ----------- Storm Laser > --- INVENTORY -------- Light Angular Momentum Engine Fusion Compressor Micro Fission Core Makeshift Hover Unit Makeshift Hover Unit Makeshift Hover Unit Improved Coolant Injector Improved Coolant Injector Improved Light Armor Plating Improved Medium Armor Plating Wave Gun Plasma Cannon Hardcell Cannon Hardcell Cannon Improved Remote Datajack [Rating: 114] Favorites ----------- Power Neutrino Core Engine Light Ion Engine Power Core Neutrino Core Reactor Antimatter Reactor Propulsion Light Treads Treads Light Treads Leg Carbon-fiber Leg Wheel Wheel Hover Unit Gyrokinetic Inverter Flight Unit Xenon Bombardment Thruster Utility Large Storage Unit Device Advanced Heat Sink Storage Large Storage Unit Processor Improved Signal Interpreter Protection Hardened Medium Armor Plating Weapon Heavy Mace Energy Gun Storm Laser Energy Cannon Plasma Cannon Ballistic Gun High-powered Shotgun Ballistic Cannon Bore Cannon Special Weapon Improved Remote Datajack Impact Weapon Heavy Mace Slashing Weapon Mining Claw Build | -11 -10 -9 -9 -8 -7 -6 -6 -6 -6 -5 -5 -4 -4 -4 -4 -3 ------- Run | Yrd Mat Mat Min Mat Fac Fac Low Low Zio Pro Fac Fac Upp Upp Zhi Pro Slots Evolved 12 | . . 2 . 2 2 2 . . . . 2 2 . . . . Power 1 | . . . . . . 1 . . . . . . . . . . Propulsion 6 | . . 2 . . 2 . . . . . . 2 . . . . Utility 3 | . . . . 2 . 1 . . . . . . . . . . Weapon 2 | . . . . . . . . . . . 2 . . . . . Parts Attached 114 | 6 6 5 . 4 10 3 4 2 7 10 2 29 4 5 4 13 Power 17 | 1 . 1 . . 1 1 . 1 2 2 . 4 . 2 1 1 Engine 9 | 1 . 1 . . 1 1 . 1 1 2 . . . 1 . . Core 5 | . . . . . . . . . 1 . . 4 . . . . Reactor 3 | . . . . . . . . . . . . . . 1 1 1 Propulsion 43 | 2 3 2 . . 7 . 1 1 2 2 1 12 3 3 2 2 Treads 5 | . . . . . 3 . . . . 2 . . . . . . Leg 7 | 2 1 . . . . . . 1 . . . . . . 1 2 Wheel 2 | . . . . . 2 . . . . . . . . . . . Hover 16 | . . . . . . . . . . . . 9 3 3 1 . Flight 13 | . 2 2 . . 2 . 1 . 2 . 1 3 . . . . Utility 36 | 1 1 1 . 4 . 2 2 . 2 4 . 12 1 . 1 5 Device 18 | . . . . 3 . 1 . . 2 2 . 7 1 . . 2 Storage 4 | 1 . . . . . . 1 . . . . 1 . . . 1 Processor 4 | . . 1 . 1 . . 1 . . 1 . . . . . . Hackware . | . . . . . . . . . . . . . . . . . Protection 10 | . 1 . . . . 1 . . . 1 . 4 . . 1 2 Artifact . | . . . . . . . . . . . . . . . . . Weapon 18 | 2 2 1 . . 2 . 1 . 1 2 1 1 . . . 5 Energy Gun 5 | . 2 . . . . . . . . . 1 . . . . 2 Energy Cannon 1 | . . . . . . . . . . . . . . . . 1 Ballistic Gun 5 | 2 . . . . 2 . . . . . . . . . . 1 Ballistic Cannon 2 | . . . . . . . . . . 2 . . . . . . Launcher . | . . . . . . . . . . . . . . . . . Special Weapon 1 | . . . . . . . . . . . . 1 . . . . Impact Weapon 1 | . . . . . . . 1 . . . . . . . . . Slashing Weapon 3 | . . 1 . . . . . . 1 . . . . . . 1 Piercing Weapon . | . . . . . . . . . . . . . . . . . Special Melee Weapon . | . . . . . . . . . . . . . . . . . Unidentified Prototypes 8 | . . . . . . . . . 1 . 1 2 . . 4 . Parts Lost 51 | . 1 . . 1 4 . 2 . . 9 . 2 1 5 . 26 Power 8 | . . . . . 1 . . . . . . . . 2 . 5 Propulsion 21 | . . . . 1 3 . 2 . . 3 . 1 . 3 . 8 Utility 16 | . . . . . . . . . . 6 . 1 1 . . 8 Weapon 6 | . 1 . . . . . . . . . . . . . . 5 Highest Loss Streak 12 | . 1 . . 1 4 . 2 . . 7 . 2 1 3 . 12 To Critical Strikes 2 | . . . . . . . . . . 1 . . . . . 1 Average Backups 10 | 1 5 5 6 6 7 6 6 8 11 10 2 8 14 14 12 8 Power . | . 1 1 1 1 1 . . . . 1 . . 2 2 1 1 Propulsion 1 | . 2 2 2 2 1 . . . . . . . 2 3 2 2 Utility 4 | . . 1 2 1 3 3 3 5 7 3 1 4 4 4 4 4 Weapon 3 | . . . 1 1 1 3 3 3 3 5 . 3 3 3 3 . Tool/Special . | . . . . . . . . . . . . . . . . . Unused Backups 25 | . 1 2 . . 4 . . . 5 5 . 1 5 . 1 1 Power 2 | . 1 . . . . . . . . . . . 1 . . . Propulsion 5 | . . 2 . . 3 . . . . . . . . . . . Utility 9 | . . . . . 1 . . . 2 2 . 1 1 . 1 1 Weapon 9 | . . . . . . . . . 3 3 . . 3 . . . Tool/Special . | . . . . . . . . . . . . . . . . . Average Slot Usage (%) 83 | . 82 93 100 95 86 92 88 95 100 89 15 60 83 83 83 52 Engine 5 | . 12 6 11 9 6 5 6 10 10 9 . . . 1 2 . Core 3 | . . . . . . . . . 2 2 . 8 10 7 . 2 Treads 10 | . . . . . 1 20 20 20 20 26 4 3 . . . . Leg 1 | . 23 . . . . . . 4 3 . . . . . 1 2 Hover 12 | . . . . . . . . . . . . 16 42 41 40 21 Flight 9 | . 4 41 44 35 32 20 14 13 15 6 3 3 . . . . Device 9 | . . . . 9 7 12 9 6 6 2 . 9 19 21 18 4 Storage 5 | . 14 11 11 9 7 6 6 6 6 5 . 4 5 5 5 5 Processor 6 | . . . . 5 7 6 9 13 13 11 . . . . . . Protection 5 | . 1 11 11 9 7 6 6 6 5 9 . 8 1 . 1 2 Energy Gun 2 | . 4 17 11 9 . . . . . . 5 5 5 5 3 1 Ballistic Gun 1 | . 22 . . . 6 13 6 . . . . . . . . 1 Impact Weapon 2 | . . . . . . . 3 6 6 2 . . . . . . Slashing Weapon 3 | . . 4 11 9 6 . 2 6 6 2 . . . . . 4 Peak Build Rating 114 | 6 6 9 9 15 33 38 38 42 55 57 41 111 114 111 112 111 Average Rating 60 | 4 5 8 9 13 23 37 35 39 48 50 38 84 111 109 100 58 On Entrance 42 | . 6 6 9 9 14 33 38 35 42 55 2 41 111 111 106 111 Naked Turns 35 | . . . . . . . . . . 35 . . . . . . Heaviest Build 78 | 14 14 12 12 14 15 25 37 41 49 78 20 71 78 72 72 74 Greatest Support 116 | 20 20 16 16 16 68 68 68 68 68 116 20 86 86 91 94 94 Greatest Overweight (x) 23 | 1 3 . . 1 1 . . . . 2 1 23 1 1 2 1 Average Overweight (x) . | . . . . . . . . . . . . 1 . . . . Largest Inventory Capacity 15 | 8 8 8 8 8 8 8 15 15 15 15 5 15 15 15 15 15 Average Capacity 13 | 7 8 8 8 8 8 8 10 15 15 14 5 13 15 15 15 15 Most Carried 15 | 4 8 7 6 7 8 7 9 9 15 15 4 15 15 15 15 15 Average Carried 10 | 1 5 5 6 6 7 6 6 8 13 13 2 8 14 14 13 7 Final Capacity 15 | 8 8 8 8 8 8 8 15 15 15 5 5 15 15 15 15 15 Final Carried 15 | 4 7 7 6 7 8 6 9 9 15 5 4 15 15 15 15 15 Class Distribution -------------------- 29% | Derelict-Gladiator 14% | Scavenger-Gunner 12% | Mutant 7% | Scavenger-Tank 6% | Gladiator 6% | Scavenger-Skirmisher 5% | Scavenger-Mutant 3% | Scavenger-Sprinter 3% | Tank Dominant Class ---------------- Mutant | -10/Materials Mutant | -9/Materials Mutant | -9/Mines Scavenger-Sprinter | -8/Materials Mutant | -7/Factory Scavenger-Skirmisher | -6/Factory Gladiator | -6/Lower Caves Derelict-Gladiator | -6/Lower Caves Derelict-Gladiator | -6/Zion Scavenger-Mutant | -5/Proximity Caves Gunner | -5/Factory Scavenger-Tank | -4/Factory Scavenger-Gunner | -4/Upper Caves Scavenger-Gunner | -4/Upper Caves Derelict-Gunner | -4/Zhirov Mutant | -3/Proximity Caves Resources | -11 -10 -9 -9 -8 -7 -6 -6 -6 -6 -5 -5 -4 -4 -4 -4 -3 ----------- Run | Yrd Mat Mat Min Mat Fac Fac Low Low Zio Pro Fac Fac Upp Upp Zhi Pro Matter Collected 1756 | 185 130 . . . 100 . 351 25 112 251 . 393 50 48 . 111 Remotely . | . . . . . . . . . . . . . . . . . Salvage Created 1766 | . 246 . . . 71 . 47 . . 169 . 410 315 398 . 110 Parts 89 | . 16 . . . 4 . 2 . . 10 . 19 15 18 . 5 Haulers Intercepted 1 | . 1 . . . . . . . . . . . . . . . Recyclers Shooed 1 | . . . . . . . . . . . . 1 . . . . Parts Field Recycled . | . . . . . . . . . . . . . . . . . Retrieved Matter . | . . . . . . . . . . . . . . . . . Parts Self-Destructed 56 | . . . . . . . 2 . 1 14 . . 17 18 . 4 Prevented 3 | . . . . . . . 3 . . . . . . . . . Kills | -11 -10 -9 -9 -8 -7 -6 -6 -6 -6 -5 -5 -4 -4 -4 -4 -3 ------- Run | Yrd Mat Mat Min Mat Fac Fac Low Low Zio Pro Fac Fac Upp Upp Zhi Pro Combat Hostiles Destroyed 39 | . 7 . . . 1 . 2 . . 5 . 3 9 9 . 3 Melee 1 | . . . . . . . . . . 1 . . . . . . Guns 31 | . 7 . . . 1 . 1 . . . . 3 9 8 . 2 Cannons 4 | . . . . . . . . . . 3 . . . . . 1 Classes Destroyed 10 | . 3 . . . 2 . . . . 3 . 1 . 1 . . Worker 2 | . . . . . 1 . . . . . . 1 . . . . Hauler 1 | . 1 . . . . . . . . . . . . . . . Recycler 2 | . . . . . . . . . . . . 2 . . . . Drone 1 | . . . . . . . . . . 1 . . . . . . Swarmer 22 | . 3 . . . . . 2 . . . . 2 7 5 . 3 Grunt 9 | . 4 . . . . . . . . 2 . . 1 2 . . Brawler 1 | . . . . . . . . . . . . . . 1 . . Sentry 3 | . . . . . 1 . . . . . . 1 1 . . . Hunter 1 | . . . . . . . . . . 1 . . . . . . Programmer 2 | . . . . . . . . . . 1 . . . 1 . . Best Kill Streak 6 | . 3 . . . 2 . 2 . . 2 . 3 6 5 . 2 Combat Bots Only 6 | . 3 . . . 1 . 2 . . 2 . 2 6 5 . 2 Max Kills in Single Turn 3 | . 2 . . . 1 . 1 . . 1 . 3 2 2 . 2 Gunslinging 1 | . 1 . . . . . . . . . . . . . . . Exploded . | . . . . . . . . . . . . . . . . . Melee 1 | . . . . . . . . . . 1 . . . . . . Uniques/NPCs Destroyed . | . . . . . . . . . . . . . . . . . Combat | -11 -10 -9 -9 -8 -7 -6 -6 -6 -6 -5 -5 -4 -4 -4 -4 -3 -------- Run | Yrd Mat Mat Min Mat Fac Fac Low Low Zio Pro Fac Fac Upp Upp Zhi Pro Hostile Shots Fired 728 | . 61 2 4 25 54 . 38 . . 113 . 47 22 54 . 308 Missed 250 | . 14 1 1 10 23 . 11 . . 33 . 14 7 22 . 114 Hits 478 | . 47 1 3 15 31 . 27 . . 80 . 33 15 32 . 194 Melee 4 | . . . . . . . . . . 4 . . . . . . Projectile 474 | . 47 1 3 15 31 . 27 . . 76 . 33 15 32 . 194 Critical Strikes 18 | . 1 . . . . . . . . 3 . 4 . 3 . 7 Damage Taken 8426 | . 445 15 34 137 235 . 405 . . 1677 . 746 241 608 . 3883 Core 1671 | . 67 15 23 47 22 . 12 . . 401 . 127 . 45 . 912 Absorbed by Shields . | . . . . . . . . . . . . . . . . . Redirected to Shielding 278 | . . . 3 11 25 . . . . . . 77 . . . 162 Core Remaining (%) 85 | 100 73 . 90 91 96 . . . . 51 100 . . . . . Volleys Fired 90 | . 23 . . . 4 . 5 . . 16 . 13 9 13 2 5 Largest 3 | . 2 . . . 2 . 2 . . 2 . 1 1 1 1 3 Hottest 250 | . 60 . . . 53 . 53 . . 88 . 250 250 250 7 250 Shots Fired 136 | . 41 . . . 8 . 10 . . 29 . 13 9 13 2 11 Gun 101 | . 41 . . . 8 . 10 . . . . 12 9 13 . 8 Cannon 32 | . . . . . . . . . . 29 . . . . . 3 Launcher . | . . . . . . . . . . . . . . . . . Special 3 | . . . . . . . . . . . . 1 . . 2 . Kinetic 90 | . 40 . . . 8 . 10 . . 29 . . . . . 3 Thermal 43 | . 1 . . . . . . . . . . 12 9 13 . 8 Explosive . | . . . . . . . . . . . . . . . . . Electromagnetic . | . . . . . . . . . . . . . . . . . Robot Hit Streak 15 | . 15 . . . 6 . 1 . . 3 . 7 5 9 2 1 Robot Miss Streak 12 | . 3 . . . 1 . 10 . . 5 . 7 9 12 . 11 Penetration Max . | . . . . . . . . . . . . . . . . . Secondary Targets 1 | . 1 . . . . . . . . . . . . . . . Max Gunslinging Chain 1 | . 1 . . . . . . . . . . . . . . . Shots Hit Robots 96 | . 27 . . . 7 . 6 . . 12 . 13 9 13 2 7 Core Hits 90 | . 12 . . . 5 . 2 . . 5 . 23 17 19 . 7 Critical Kills 1 | . . . . . . . . . . 1 . . . . . . Critical Parts Destroyed 3 | . . . . . . . 1 . . 2 . . . . . . Critical Strikes 5 | . . . . . . . 1 . . 3 . . . . . 1 Destroy 3 | . . . . . . . . . . 3 . . . . . . Smash 1 | . . . . . . . 1 . . . . . . . . . Sever 1 | . . . . . . . . . . . . . . . . 1 Melee Attacks 16 | . . 1 . 3 . . 3 . . 4 . . . . . 5 Impact 6 | . . . . . . . 3 . . 3 . . . . . . Slashing 10 | . . 1 . 3 . . . . . 1 . . . . . 5 Piercing . | . . . . . . . . . . . . . . . . . Sneak Attacks 1 | . . . . . . . . . . 1 . . . . . . Combat Hostiles 1 | . . . . . . . . . . 1 . . . . . . Follow-up Attacks . | . . . . . . . . . . . . . . . . . Damage Inflicted 4494 | . 371 . . . 134 . 182 . . 558 . 1289 729 890 . 341 Guns 3619 | . 371 . . . 134 . 54 . . . . 1289 729 890 . 152 Cannons 401 | . . . . . . . . . . 374 . . . . . 27 Explosions . | . . . . . . . . . . . . . . . . . Melee 429 | . . . . . . . 128 . . 180 . . . . . 121 Ramming 45 | . . . . . . . . . . 4 . . . . . 41 Kinetic 957 | . 359 . . . 134 . 54 . . 374 . . . . . 36 Thermal 3063 | . 12 . . . . . . . . . . 1289 729 890 . 143 Explosive . | . . . . . . . . . . . . . . . . . Electromagnetic . | . . . . . . . . . . . . . . . . . Impact 308 | . . . . . . . 128 . . 180 . . . . . . Slashing 121 | . . . . . . . . . . . . . . . . 121 Piercing . | . . . . . . . . . . . . . . . . . Highest Corruption 10 | . . . . . . 2 2 2 2 10 . . . 1 1 1 Average Corruption 1 | . . . . . . 2 2 2 2 2 . . . 1 1 1 Corruption Purged . | . . . . . . . . . . . . . . . . . Corruption Blocked . | . . . . . . . . . . . . . . . . . Effects 33 | . . . . . . . 11 10 2 7 . . . 1 . 2 Message Errors 7 | . . . . . . . 1 2 . 3 . . . 1 . . Matter Fused 7 | . . . . . . . 2 2 . 3 . . . . . . Heat Flow Errors 5 | . . . . . . . 3 2 . . . . . . . . Energy Discharges 4 | . . . . . . . 2 2 . . . . . . . . Parts Rejected 1 | . . . . . . . . . . . . . . . . 1 Data Loss (minor) 6 | . . . . . . . 2 2 1 . . . . . . 1 Data Loss (major) 2 | . . . . . . . 1 . 1 . . . . . . . Misfires 1 | . . . . . . . . . . 1 . . . . . . Overload Shots . | . . . . . . . . . . . . . . . . . Overflow Damage 115 | . . . . . . . 79 . . 36 . . . . . . Projectiles . | . . . . . . . . . . . . . . . . . Explosions . | . . . . . . . . . . . . . . . . . Melee 115 | . . . . . . . 79 . . 36 . . . . . . Knockbacks 4 | . . . . . . . 1 . . 3 . . . . . . Impact 2 | . . . . . . . 1 . . 1 . . . . . . Kinetic 2 | . . . . . . . . . . 2 . . . . . . Secondary . | . . . . . . . . . . . . . . . . . Self-Inflicted Damage 20 | . . . . . . . . . . . . . . . . 20 Shots . | . . . . . . . . . . . . . . . . . Rammed 2 | . . . . . . . . . . 1 . . . . . 1 Targets Rammed 2 | . . . . . . . . . . 1 . . . . . 1 Kicked . | . . . . . . . . . . . . . . . . . Crushed . | . . . . . . . . . . . . . . . . . Highest Temperature 524 | . 5 6 1 3 11 . 134 228 . 233 . 524 199 250 . 405 Average Temperature 113 | . 5 6 1 2 7 . 66 104 . 110 . 135 78 39 . 176 Received Heat Transfer 2155 | . 114 9 18 27 66 . . . . 504 . 515 9 511 . 382 Effects 13 | . . . . . . . . . . . . 9 . . . 4 Shutdowns 3 | . . . . . . . . . . . . 2 . . . 1 Energy Bleed 3 | . . . . . . . . . . . . 1 . . . 2 Interference 7 | . . . . . . . . . . . . 6 . . . 1 Siege Activations . | . . . . . . . . . . . . . . . . . Martial Activations . | . . . . . . . . . . . . . . . . . Shielding Activations . | . . . . . . . . . . . . . . . . . Robots Disrupted . | . . . . . . . . . . . . . . . . . Combat Hostiles . | . . . . . . . . . . . . . . . . . Robots Corrupted 2 | . . . . . . . 1 . . 1 . . . . . . Combat Hostiles 2 | . . . . . . . 1 . . 1 . . . . . . Parts Fried 1 | . . . . . . . . . . 1 . . . . . . Impact Corruptions 5 | . . . . . . . 3 . . 2 . . . . . . Robots Melted 1 | . . . . . . . . . . . . . . 1 . . Combat Hostiles 1 | . . . . . . . . . . . . . . 1 . . Parts Melted 6 | . . . . . . . . . . . . 2 . 4 . . Heat Transferred 4475 | . 25 . . . . . . . . . . 1850 1075 1300 . 225 Parts Sabotaged 4 | . . . . . . . . . . 4 . . . . . . Parts Stolen . | . . . . . . . . . . . . . . . . . Parts Stripped . | . . . . . . . . . . . . . . . . . Power Chain Reactions . | . . . . . . . . . . . . . . . . . Alert | -11 -10 -9 -9 -8 -7 -6 -6 -6 -6 -5 -5 -4 -4 -4 -4 -3 ------- Run | Yrd Mat Mat Min Mat Fac Fac Low Low Zio Pro Fac Fac Upp Upp Zhi Pro Maximum Alert Level 1 | . . . . . . . . . . . . 1 . . . . Low Security (%) 82 | 100 100 100 100 100 100 100 . . . . 100 62 . . . . Level 1 17 | . . . . . . . . . . . . 37 . . . . Level 2 . | . . . . . . . . . . . . . . . . . Level 3 . | . . . . . . . . . . . . . . . . . Level 4 . | . . . . . . . . . . . . . . . . . Level 5 . | . . . . . . . . . . . . . . . . . High Security . | . . . . . . . . . . . . . . . . . Max Security . | . . . . . . . . . . . . . . . . . Peak Influence 394 | . 107 51 15 30 30 9 . . . . 18 394 . . . . Initial 36 | . . 36 15 5 9 9 . . . . 18 . . . . . Average 69 | . 32 38 15 14 2 1 . . . . 4 139 . . . . Influence Increases 2458 | . 167 15 . 62 52 . 80 . . 226 . 681 355 255 . 565 Destroy 0b10 Robot/C 1100 | . 140 . . . 20 . 40 . . 120 . 320 220 180 . 60 Destroy 0b10 Robot/NC 50 | . 5 . . . 5 . . . . 10 . 30 . . . . Destroy Leader 192 | . 22 . . . 10 . 10 . . 20 . 70 20 30 . 10 Allied During Kill 339 | . . . . . . . . . . 16 . 208 115 . . . Successful Hack 17 | . . . . . 17 . . . . . . . . . . . Disable Machine 45 | . . 15 . 15 . . . . . . . 15 . . . . Destroy Structure 40 | . . . . 2 . . . . . . . 38 . . . . Lose Combat Pursuer 675 | . . . . 45 . . 30 . . 60 . . . 45 . 495 Influence Decreases 2381 | . 80 61 26 55 55 19 80 . . 197 29 305 664 227 95 488 Entered New Map 369 | . . 51 26 10 13 10 . . . . 11 . 140 13 95 . Time Decay 1535 | . 70 10 . 35 42 9 70 . . 150 18 275 474 154 . 228 Lost Part 395 | . 10 . . 10 . . 10 . . 25 . 20 10 50 . 260 Lost Ally 82 | . . . . . . . . . . 22 . 10 40 10 . . Squads Dispatched 6 | . 1 . . 1 1 . . . . 1 . 2 . . . . Investigation 1 | . . . . 1 . . . . . . . . . . . . Extermination 3 | . . . . . 1 . . . . . . 2 . . . . Reinforcement 1 | . 1 . . . . . . . . . . . . . . . Assault 1 | . . . . . . . . . . 1 . . . . . . Garrison . | . . . . . . . . . . . . . . . . . Intercept . | . . . . . . . . . . . . . . . . . Searches Triggered . | . . . . . . . . . . . . . . . . . Construction Impeded . | . . . . . . . . . . . . . . . . . Haulers Reinforced . | . . . . . . . . . . . . . . . . . Active Scanning Responses . | . . . . . . . . . . . . . . . . . Cargo Convoy Interrupts . | . . . . . . . . . . . . . . . . . Stealth | -11 -10 -9 -9 -8 -7 -6 -6 -6 -6 -5 -5 -4 -4 -4 -4 -3 --------- Run | Yrd Mat Mat Min Mat Fac Fac Low Low Zio Pro Fac Fac Upp Upp Zhi Pro Distress Signals 5 | . 2 . . 3 . . . . . . . . . . . . Communications Jammed . | . . . . . . . . . . . . . . . . . Distress Signals . | . . . . . . . . . . . . . . . . . Times Spotted 139 | . 11 2 5 12 1 . 4 . . 27 . 16 10 17 . 34 Peak Tracking Total 14 | . 5 2 5 11 1 . 3 . . 14 . 5 7 5 . 9 Tactical Retreats 21 | . . . . 2 . . 1 . . 3 . . . 2 . 13 Traps | -11 -10 -9 -9 -8 -7 -6 -6 -6 -6 -5 -5 -4 -4 -4 -4 -3 ------- Run | Yrd Mat Mat Min Mat Fac Fac Low Low Zio Pro Fac Fac Upp Upp Zhi Pro Traps Triggered 2 | . . . . . 1 1 . . . . . . . . . . Indirectly . | . . . . . . . . . . . . . . . . . Trap Hack Attempts . | . . . . . . . . . . . . . . . . . Triggered . | . . . . . . . . . . . . . . . . . Disarmed . | . . . . . . . . . . . . . . . . . Reprogrammed . | . . . . . . . . . . . . . . . . . Reused . | . . . . . . . . . . . . . . . . . Traps Extracted . | . . . . . . . . . . . . . . . . . Installed . | . . . . . . . . . . . . . . . . . Triggered . | . . . . . . . . . . . . . . . . . Machines | -11 -10 -9 -9 -8 -7 -6 -6 -6 -6 -5 -5 -4 -4 -4 -4 -3 ---------- Run | Yrd Mat Mat Min Mat Fac Fac Low Low Zio Pro Fac Fac Upp Upp Zhi Pro Machines Disabled 3 | . . 1 . 1 . . . . . . . 1 . . . . Max in Single Turn 1 | . . 1 . 1 . . . . . . . . . . . . Garrison Access 1 | . . . . . . . . . . . . 1 . . . . Machines Repaired . | . . . . . . . . . . . . . . . . . Machines Dismantled . | . . . . . . . . . . . . . . . . . Machines Sabotaged . | . . . . . . . . . . . . . . . . . Overloaded Fab Kills . | . . . . . . . . . . . . . . . . . Hacking | -11 -10 -9 -9 -8 -7 -6 -6 -6 -6 -5 -5 -4 -4 -4 -4 -3 --------- Run | Yrd Mat Mat Min Mat Fac Fac Low Low Zio Pro Fac Fac Upp Upp Zhi Pro Machines Accessed 18 | . . . . 2 3 1 . . . . . 2 1 . 9 . Terminals 5 | . . . . 1 3 1 . . . . . . . . . . Fabricators . | . . . . . . . . . . . . . . . . . Repair Stations 1 | . . . . . . . . . . . . 1 . . . . Recycling Units . | . . . . . . . . . . . . . . . . . Scanalyzers 1 | . . . . 1 . . . . . . . . . . . . Garrison Access 1 | . . . . . . . . . . . . 1 . . . . Total Hacks 67 | . . . . 4 9 3 . . . . . 2 1 . 48 . Successful 59 | . . . . 3 4 2 . . . . . 1 1 . 48 . Failed 8 | . . . . 1 5 1 . . . . . 1 . . . . Catastrophic 2 | . . . . 1 1 . . . . . . . . . . . Database Lockouts . | . . . . . . . . . . . . . . . . . Manual 11 | . . . . 1 4 . . . . . 3 2 1 . . . Terminals 13 | . . . . 1 9 3 . . . . . . . . . . Fabricators . | . . . . . . . . . . . . . . . . . Repair Stations 1 | . . . . . . . . . . . . 1 . . . . Recycling Units . | . . . . . . . . . . . . . . . . . Scanalyzers 3 | . . . . 3 . . . . . . . . . . . . Garrison Access 1 | . . . . . . . . . . . . 1 . . . . Terminal Hacks 55 | . . . . . 4 2 . . . . . . 1 . 48 . Record 37 | . . . . . . 1 . . . . . . . . 36 . Part Schematic 5 | . . . . . 1 . . . . . . . . . 4 . Robot Analysis 4 | . . . . . . . . . . . . . . . 4 . Prototype ID Bank 5 | . . . . . 1 . . . . . . . . . 4 . Open Door 1 | . . . . . . . . . . . . . 1 . . . Emergency Access Points 2 | . . . . . 1 1 . . . . . . . . . . Transport Status 1 | . . . . . 1 . . . . . . . . . . . Fabricator Hacks . | . . . . . . . . . . . . . . . . . Repair Station Hacks . | . . . . . . . . . . . . . . . . . Recycling Unit Hacks . | . . . . . . . . . . . . . . . . . Scanalyzer 3 | . . . . 3 . . . . . . . . . . . . Insert Component 2 | . . . . 2 . . . . . . . . . . . . Analyze 1 | . . . . 1 . . . . . . . . . . . . Garrison Access Hacks 1 | . . . . . . . . . . . . 1 . . . . Seal Access 1 | . . . . . . . . . . . . 1 . . . . Unauthorized Hacks . | . . . . . . . . . . . . . . . . . Terminals . | . . . . . . . . . . . . . . . . . Fabricators . | . . . . . . . . . . . . . . . . . Repair Stations . | . . . . . . . . . . . . . . . . . Recycling Units . | . . . . . . . . . . . . . . . . . Scanalyzers . | . . . . . . . . . . . . . . . . . Garrison Access . | . . . . . . . . . . . . . . . . . Data Cores Recovered . | . . . . . . . . . . . . . . . . . Used . | . . . . . . . . . . . . . . . . . Hacking Detections 7 | . . . . 2 3 1 . . . . . 1 . . . . Full Trace Events 1 | . . . . 1 . . . . . . . . . . . . Feedback Events . | . . . . . . . . . . . . . . . . . Feedback Blocked . | . . . . . . . . . . . . . . . . . Robot Schematics Acquired 3 | . . . . . . . . . 3 . . . . . . . Robots Built . | . . . . . . . . . . . . . . . . . Authchips . | . . . . . . . . . . . . . . . . . Time . | . . . . . . . . . . . . . . . . . Total Robot Build Rating . | . . . . . . . . . . . . . . . . . Part Schematics Acquired 19 | . . . . 1 1 . . . 13 . . . . . 4 . Parts Built . | . . . . . . . . . . . . . . . . . Authchips . | . . . . . . . . . . . . . . . . . Time . | . . . . . . . . . . . . . . . . . Total Part Build Rating . | . . . . . . . . . . . . . . . . . Parts Repaired . | . . . . . . . . . . . . . . . . . Time . | . . . . . . . . . . . . . . . . . Parts Recycled . | . . . . . . . . . . . . . . . . . Recycled Matter . | . . . . . . . . . . . . . . . . . Retrieved Matter . | . . . . . . . . . . . . . . . . . Retrieved Components . | . . . . . . . . . . . . . . . . . Parts Scanalyzed 1 | . . . . 1 . . . . . . . . . . . . Part Schematics Acquired 1 | . . . . 1 . . . . . . . . . . . . Parts Damaged . | . . . . . . . . . . . . . . . . . Bothacking | -11 -10 -9 -9 -8 -7 -6 -6 -6 -6 -5 -5 -4 -4 -4 -4 -3 ------------ Run | Yrd Mat Mat Min Mat Fac Fac Low Low Zio Pro Fac Fac Upp Upp Zhi Pro Used RIF Installer . | . . . . . . . . . . . . . . . . . Robots Hacked 3 | . . . . . . . . . . . . 1 . . 2 . Non-combat . | . . . . . . . . . . . . . . . . . Combat 3 | . . . . . . . . . . . . 1 . . 2 . Robot Hacks Applied 3 | . . . . . . . . . . . . 1 . . 2 . parse_system 3 | . . . . . . . . . . . . 1 . . 2 . Relay Couplers Released . | . . . . . . . . . . . . . . . . . Fabnet Peak Effective % . | . . . . . . . . . . . . . . . . . Robots Rewired . | . . . . . . . . . . . . . . . . . Allies Hacked 3 | . . . . . . . . . . 1 . 2 . . . . Hacks Repelled . | . . . . . . . . . . . . . . . . . Allies | -11 -10 -9 -9 -8 -7 -6 -6 -6 -6 -5 -5 -4 -4 -4 -4 -3 -------- Run | Yrd Mat Mat Min Mat Fac Fac Low Low Zio Pro Fac Fac Upp Upp Zhi Pro Total Allies 10 | . . . . . . . . . 4 . 5 1 . . . . Largest Group 5 | . . . . . . . . . 4 4 5 5 3 1 . . Highest-Rated Group 402 | . . . . . . . . . 162 162 402 402 212 36 . . Highest-Rated Ally 96 | . . . . . . . . . 41 41 96 96 96 36 . . Zionite Dispatches 2 | . . . . . . . . . . . 1 1 . . . . Light 1 | . . . . . . . . . . . 1 . . . . . Hover Resupply 1 | . . . . . . . . . . . . 1 . . . . Total Orders 3 | . . . . . . . . . . . . 1 2 . . . FOLLOW 1 | . . . . . . . . . . . . . 1 . . . DROP 1 | . . . . . . . . . . . . 1 . . . . COLLECT 1 | . . . . . . . . . . . . . 1 . . . Ally Attacks 117 | . . . . . . . . . . 17 . 72 28 . . . Total Damage 3178 | . . . . . . . . . . 392 . 2322 464 . . . Kills 21 | . . . . . . . . . . 3 . 16 2 . . . Allies Corrupted 1 | . . . . . . . . . . . . 1 . . . . Allies Melted . | . . . . . . . . . . . . . . . . . Intel | -11 -10 -9 -9 -8 -7 -6 -6 -6 -6 -5 -5 -4 -4 -4 -4 -3 ------- Run | Yrd Mat Mat Min Mat Fac Fac Low Low Zio Pro Fac Fac Upp Upp Zhi Pro Active Infowar (turns) 4206 | . . . . 75 482 106 766 632 1749 221 . 175 . . . . Optics 215 | . . . . . . . . . . 215 . . . . . . Sensors 3816 | . . . . 75 482 106 766 632 1749 6 . . . . . . Terrain 510 | . . . . . . 104 406 . . . . . . . . . Jamming 175 | . . . . . . . . . . . . 175 . . . . ECM 20 | . . . . . . . . . 20 . . . . . . . Robot Analysis Total 4 | . . . . . . . . . . . . . . . 4 . Derelict Logs Recovered 8 | . . . . . . . . 3 2 1 . . 1 1 . . Drone Launches . | . . . . . . . . . . . . . . . . . Drone Recoveries . | . . . . . . . . . . . . . . . . . Exploration | -11 -10 -9 -9 -8 -7 -6 -6 -6 -6 -5 -5 -4 -4 -4 -4 -3 ------------- Run | Yrd Mat Mat Min Mat Fac Fac Low Low Zio Pro Fac Fac Upp Upp Zhi Pro Turns Passed 8146 | 59 238 37 5 90 482 106 766 632 1749 680 121 954 1217 376 125 509 Spaces Moved 6212 | 36 143 71 11 221 716 65 377 393 1067 408 72 390 880 463 216 683 Core 76 | 2 2 . . . . . . . . 66 . 6 . . . . Treads 2334 | . . . . . 11 65 377 393 1067 342 8 71 . . . . Legs 179 | 34 80 . . . . . . . . . . . . . 8 57 Wheels 1 | . . . . . 1 . . . . . . . . . . . Hover 2487 | . . . . . . . . . . . . 310 880 463 208 626 Flight 1135 | . 61 71 11 221 704 . . . . . 64 3 . . . . Fastest Speed 30 | 50 37 31 31 31 31 160 160 160 160 50 140 32 30 38 38 42 Average Speed 107 | 129 90 31 31 32 35 160 160 160 160 143 143 182 95 68 47 65 Slowest Speed 1200 | 190 200 31 31 114 160 160 160 160 160 320 170 1200 104 103 260 124 Overloaded Moves . | . . . . . . . . . . . . . . . . . Propulsion Burnouts . | . . . . . . . . . . . . . . . . . Robots Hopped 17 | . . . 4 7 6 . . . . . . . . . . . Potential Cave-ins . | . . . . . . . . . . . . . . . . . Cave-ins Triggered . | . . . . . . . . . . . . . . . . . Teleports 1 | . . . . . . . . . . . . . . . 1 . Exploration Rate (%) 40 | 3 31 12 7 23 21 3 58 57 91 64 2 13 88 69 62 81 Regions Visited 16 Branch Regions 9 Pre-discovered Areas 4 | . . . . . . . . . . . . . . 1 3 . Known Exits Taken 9 | . . 1 . 1 1 1 1 1 1 1 1 . . . . . Unknown Exits Taken 7 | 1 1 . 1 . . . . . . . . 1 1 1 1 . Scrap Searched 12 | . . . . . . . 2 1 5 1 . . 1 1 . 1 Spaces Dug 4 | . . . . 2 . . . . . . . . . . . 2 Terrain Destroyed 16 | . . . . 2 . . . . . 12 . . . . . 2 Melee 4 | . . . . 2 . . . . . . . . . . . 2 Projectile 12 | . . . . . . . . . . 12 . . . . . . AOE . | . . . . . . . . . . . . . . . . . Terrain Rammed . | . . . . . . . . . . . . . . . . . Walls Destroyed . | . . . . . . . . . . . . . . . . . Machines Disabled . | . . . . . . . . . . . . . . . . . Actions | -11 -10 -9 -9 -8 -7 -6 -6 -6 -6 -5 -5 -4 -4 -4 -4 -3 --------- Run | Yrd Mat Mat Min Mat Fac Fac Low Low Zio Pro Fac Fac Upp Upp Zhi Pro Total 7431 | 46 212 83 7 227 929 67 522 396 1116 470 89 591 1234 483 239 720 Wait 813 | . 27 . . 4 165 . 131 . 5 14 11 130 320 3 . 3 Move 6165 | 35 142 70 4 207 703 64 376 392 1066 407 71 389 879 462 215 683 Hop 14 | . . . 2 6 6 . . . . . . . . . . . Pick Up 78 | 5 5 5 . 1 11 . 2 1 12 4 4 13 9 . 5 1 Fast Attach 62 | 5 4 . . 2 6 . 1 2 7 3 1 20 3 . 4 4 Attach 50 | 1 1 3 . 2 2 2 . . 2 5 2 5 . 5 4 16 Detach 28 | . 3 . . 2 1 . . . 7 2 . 6 . . 6 1 Swap 26 | . 1 2 1 . 2 1 4 . 1 5 . 6 2 . . 1 Drop 69 | . 6 2 . . 11 . . 1 16 9 . 9 12 . 3 . Fire 90 | . 23 . . . 4 . 5 . . 16 . 13 9 13 2 5 Melee 15 | . . 1 . 3 . . 3 . . 3 . . . . . 5 Ram 1 | . . . . . . . . . . . . . . . . 1 Kick . | . . . . . . . . . . . . . . . . . Crush 1 | . . . . . . . . . . 1 . . . . . . Escape Stasis 18 | . . . . . 18 . . . . . . . . . . . Rewire 1 | . . . . . . . . . . 1 . . . . . . Trap . | . . . . . . . . . . . . . . . . . Miscellaneous . | . . . . . . . . . . . . . . . . . Route ------- -11/Scrapyard -10/Materials -9/Materials -9/Mines -8/Materials -7/Factory -6/Factory -6/Lower Caves -6/Lower Caves (discovered 2 exits: *Fac / *Zio) -6/Zion -5/Proximity Caves -5/Factory -4/Factory -4/Upper Caves -4/Upper Caves (discovered 2 exits: [*Res] / *Zhi) -4/Zhirov -3/Proximity Caves History --------- Turn | Location | Event 31 | -11/Scrapyard | Discovered new exit (range 15) 60 | -11/Scrapyard | Entered Materials 293 | -10/Materials | Discovered new exit (range 16) 298 | -10/Materials | Entered another Materials area 298 | -9/Materials | Evolved 2 slots: Propulsion x2 332 | -9/Materials | Discovered new exit (range 6) 335 | -9/Materials | Identified exit to Mines 335 | -9/Materials | Entered Mines 339 | -9/Mines | Discovered new exit (range 6) 340 | -9/Mines | Entered Materials 340 | -8/Materials | Evolved 2 slots: Utility x2 413 | -8/Materials | Discovered new exit (range 7) 414 | -8/Materials | Identified exit to Factory 430 | -8/Materials | Entered Factory 430 | -7/Factory | Evolved 2 slots: Propulsion x2 863 | -7/Factory | Discovered new exit (range 16) 874 | -7/Factory | Identified exit to Factory 911 | -7/Factory | Lost 4 parts (1p3n) 912 | -7/Factory | Entered another Factory area 912 | -6/Factory | Evolved 2 slots: Power x1, Utility x1 1001 | -6/Factory | Discovered new exit (range 12) 1017 | -6/Factory | Identified exit to Lower Caves 1018 | -6/Factory | Entered Lower Caves 1144 | -6/Lower Caves | Build established: Scavenger-Skirmisher 1726 | -6/Lower Caves | Build established: Gladiator 1766 | -6/Lower Caves | Discovered new exit (range 8) 1782 | -6/Lower Caves | Identified exit to Lower Caves 1784 | -6/Lower Caves | Entered another Lower Caves area 1810 | -6/Lower Caves | Discovered new exit (range 8) 1820 | -6/Lower Caves | Identified exit to Factory 1919 | -6/Lower Caves | Learned Factory stockpile data 2002 | -6/Lower Caves | Learned 8 Factory zone layouts 2026 | -6/Lower Caves | Learned 8 Factory zone layouts 2286 | -6/Lower Caves | Build established: Derelict-Gladiator 2400 | -6/Lower Caves | Discovered new exit (range 11) 2415 | -6/Lower Caves | Identified exit to Zion 2416 | -6/Lower Caves | Entered Zion 2546 | -6/Zion | System corruption cleaned by Quarantine Array 2899 | -6/Zion | Met Imprinter 2932 | -6/Zion | Imprinted 2934 | -6/Zion | Declared Zion's savior 3223 | -6/Zion | Learned Factory emergency access door positions 3384 | -6/Zion | Found Prototype Device 3384 | -6/Zion | Identified Phasing AFG 3602 | -6/Zion | Given A8's code to call for help 3777 | -6/Zion | Found Prototype Energy Gun 3997 | -6/Zion | Discovered new exit (range 11) 4011 | -6/Zion | Identified exit to Proximity Caves 4165 | -6/Zion | Entered Proximity Caves 4165 | -5/Proximity Caves | Accompanied by 4 allies 4350 | -5/Proximity Caves | P-70 Sage assimilated allied ZC-8PE(M) 4666 | -5/Proximity Caves | Build established: Scavenger-Mutant 4781 | -5/Proximity Caves | Attracted the attention of an 0b10 outpost 4810 | -5/Proximity Caves | Released all parts (4) 4811 | -5/Proximity Caves | System corruption reached 10% 4826 | -5/Proximity Caves | Learned 8 Factory zone layouts 4839 | -5/Proximity Caves | Discovered exit to Factory (range 13) 4841 | -5/Proximity Caves | Lost 7 parts (3n4u) 4845 | -5/Proximity Caves | Entered Factory 4845 | -5/Factory | Evolved 2 slots: Weapon x2 4845 | -5/Factory | Identified Storm Laser 4846 | -5/Factory | Identified exit to Factory 4914 | -5/Factory | Zion Light squad teleported in 4916 | -5/Factory | Enhanced Grunt warped into view, answering call for help 4921 | -5/Factory | Enhanced Grunt warped into view, answering call for help 4966 | -5/Factory | Entered another Factory area 4966 | -4/Factory | Accompanied by 5 allies 4966 | -4/Factory | Evolved 2 slots: Propulsion x2 5191 | -4/Factory | Lost 3 allies 5268 | -4/Factory | Found Prototype Protection 5268 | -4/Factory | Identified Zio. Weapon Casing 5487 | -4/Factory | Zion Hover Resupply teleported in 5487 | -4/Factory | Spotted B-86 Titan 5502 | -4/Factory | Allies destroyed B-86 Titan 5828 | -4/Factory | Discovered new exit (range 5) 5920 | -4/Factory | Entered Upper Caves 5920 | -4/Upper Caves | Accompanied by 3 allies 5936 | -4/Upper Caves | Learned 4 Research zone layouts 6101 | -4/Upper Caves | Build established: Scavenger-Tank 6145 | -4/Upper Caves | Found DCF Scrap (16 items) 6235 | -4/Upper Caves | Attracted the attention of an 0b10 checkpoint 6555 | -4/Upper Caves | Build established: Scavenger-Gunner 6725 | -4/Upper Caves | Spotted B-86 Titan 6950 | -4/Upper Caves | Discovered new exit (range 9) 7137 | -4/Upper Caves | Entered another Upper Caves area 7137 | -4/Upper Caves | Accompanied by 1 ally 7170 | -4/Upper Caves | Discovered new exit (range 11) 7359 | -4/Upper Caves | Spotted B-86 Titan 7371 | -4/Upper Caves | Learned location of Testing (-3) 7503 | -4/Upper Caves | Attracted the attention of an 0b10 checkpoint 7505 | -4/Upper Caves | Lost 3 parts (1p2n) 7511 | -4/Upper Caves | Discovered new exit (range 8) 7513 | -4/Upper Caves | Entered Zhirov 7513 | -4/Zhirov | Discovered new exit (range 3) 7520 | -4/Zhirov | Met Zhirov 7532 | -4/Zhirov | Learned location of Quarantine (-2) 7532 | -4/Zhirov | Learned location of Command (-1) 7540 | -4/Zhirov | Zhirov requested help retrieving the SGEMP Prototype 7550 | -4/Zhirov | Found Alien Artifact 7550 | -4/Zhirov | Identified Transdimensional Reconstructor 7550 | -4/Zhirov | Warped through subspace 7638 | -4/Zhirov | Entered Proximity Caves 7762 | -3/Proximity Caves | Lost 5 parts (1p2n2u) 7805 | -3/Proximity Caves | Core integrity fell below 50% 7835 | -3/Proximity Caves | Lost 12 parts (2p3n4u3w) 8050 | -3/Proximity Caves | Attracted the attention of an 0b10 checkpoint 8087 | -3/Proximity Caves | Build established: Mutant 8101 | -3/Proximity Caves | Core integrity fell below 20% 8147 | -3/Proximity Caves | Destroyed by H-77 Assassin with Coil Gun Last Messages --------------- 08068_ Slug penetrates Wall. 08078_ Drone sends a signal. 08093_ Slug penetrates Wall. 08096_ Lyr. Light Armor Plating destroyed. 08097_ Penetrated by Slug. 08097_ Slug penetrates Wall. 08099_ Lgt. Antimatter Reactor destroyed. 08100_ Penetrated by Slug. 08103_ Slug penetrates Wall. 08109_ Penetrated by Slug. 08127_ Gyrokinetic Inverter destroyed. 08140_ Slug penetrates H-77 Assassin. 08140_ Slug penetrates Wall. 08141_ Penetrated by Slug. 08144_ Critical hit (Destroy). 08144_ Adv. Myomer Leg destroyed. 08144_ Slug penetrates Wall. 08145_ Slug penetrates H-77 Assassin. 08145_ Penetrated by Slug. [Achievement: Tester] Map ----- +----------------------------------------------------+ | ?# #??# #### ####?????## ??? | | ?###### #??# #?# ##????# #?##? | | ??????## ##?# #?# ###### ## #? | | ???????## #?# ### #? | | ??????### #?## ## | | ?????## ##### # | | ?????# #?## ##? | | ?????# ##??####### ##? | | ?????#### ####????####?## #### #? | | ????????## ##??????## ##?#"##??# ##? | | ###?####?# #?????### ###"#??## ##?? | | ### ### #?????# #### ### ##?? | | #?????# ##?## ### | | #?????# #?### | | ## #????## ## | | ########### #????# ###### #### | | ##???###???###????# ##????# #?# | | ##?# ##?????????# #?????# ##?# ### | | ## #??????#### #????# ##??# ## ##? | | #??????## ##???# ###???# ?## ## | | ###?????## ##### ##?????# ??# | | ###??????## #####??????####??# | | #????????# #???????????###### | | ##???????# ##???#####??# ### | | ## ##?????# ### hs##### #??# #?# | | ?# ##?# #?# @ h ## #??# #### #?? | | ?## #### ## #### #??# #??# ### | | ??## #####?##### #### #??# #??# | | ???# ##?????# ##?##### ##??# #### | | ???## ##????# ##????## ##???# ## ### | | ????## ######## #?????# ##????# ##?# | | ?????# ### #?????###?????## ##?## | | ?????# #??????????????#####??# | | ?????# #?????????????????????# | | ?????# ##########?????????????????????# | | ?##### ###??????????????????????????????# | | ## ##????????????????????????????????# | | # ##?????????????????????????????????# | | ### ##??????????????????????????????????## | | ## #?###????????????????????????????????????## | | ?## ##?????????????????????????????????????????? | | ??#####??????????????????????????????????????????? | | ?????????????????????????????????????????????????? | | ?????????????????????????????????????????????????? | | ?????????????????????????????????????????????????? | | ?????????????????????????????????????????????????? | | ?????????????????????????????????????????????????? | | ?????????????????????????????????????????????????? | | ?????????????????????????????????????????????????? | | ?????????????????????????????????????????????????? | +----------------------------------------------------+ Best States ------------- Heat Dissipation 95 Coolant Potential 160 Energy Generation 39 Energy Capacity 670 Matter Stores 300 Matter Capacity 300 Sight Range 20 Robot Scan Range 15 Terrain Scan Range 16 Terrain Scan Density 10 ECM Strength 2 Jamming Range 16 Armor Coverage 550 Resistance: TH 30 Propulsion Shielding 90 Weapon Shielding 100 Evasion (%) 63 Melee Accuracy 6 Recoil Reduction 5 Item Schematics ----------------- Heat Sink | -8/Materials | Scanalyzed Lyr. Light Armor Plating | -7/Factory | Hacked Nuclear Pulse Thruster | -6/Zion | Archive Adv. System Restoration Module | -6/Zion | Archive Adv. System Shield | -6/Zion | Archive Lgt. Angular Momentum Engine | -6/Zion | Archive Antigrav System | -6/Zion | Archive Imp. Cryofiber Web | -6/Zion | Archive Dispersion Rifle | -6/Zion | Archive Lgt. Antimatter Reactor | -6/Zion | Archive Force Field | -6/Zion | Archive Adv. Cooling System | -6/Zion | Archive Thermic Laser | -6/Zion | Archive Point Defense System | -6/Zion | Archive EM Shield | -6/Zion | Archive Assault Drone Bay | -4/Zhirov | Free Exp. Heat Sink | -4/Zhirov | Free Exp. Optical Array | -4/Zhirov | Free Imp. Arc Thrower | -4/Zhirov | Free Robot Schematics ------------------ H-66 Slayer | -6/Zion | Archive I-36 Angel | -6/Zion | Archive A-02 Transporter | -6/Zion | Archive Fabricated ------------ Nothing Repaired ---------- Nothing Alien Tech Used ----------------- Transdimensional Reconstructor Achievements -------------- Subspace Traveler Tester The Science Guy Challenges ------------ None Game ------ Seed ArcsightCompanionJammer Manual? 0 Play Time 01:52:04 Cumulative 93.4 hours Start 2025.07.19 @ 10:08:31 End 2025.07.19 @ 12:30:31 Sessions 1 Manual Loads 0 Difficulty Rogue Special Mode None Game No. 88 Rogue 85 Adventurer 1 Explorer 2 Win Type - Total 0 Types 0/0/0/0/0/0/0/0/0/0 Lore% 35 Gallery% 51 Achievement% 38 Wizard Run 0 Options --------- Layout 0 ASCII 0 Keyboard 0 Movement Mouse Keybinds 0 Fullscreen 2 Font 24/Smallcaps Map View 76x50 Zoom Use 3% Tactical HUD 1 Map Filters NONE Filters NONE Steam 1 RUN: 0ee11fcf-39f8-4348-b1b8-66641f1c7238